[Event "FIDE Women World Blitz 2021"]
[Site "Warsaw"]
[Date "2021.12.29"]
[Round "4.12"]
[White "Smirnova, Ekaterina"]
[Black "Parol, Pola"]
[Result "1/2-1/2"]
[ECO "D38"]
[WhiteElo "2196"]
[BlackElo "1823"]
[Annotator "NA"]
[PlyCount "166"]
[EventDate "2021.12.29"]
[EventType "swiss"]
[EventCountry "POL"]
[Tiebreak "Cut1 Buchholz"]
[SourceTitle "playchess.com"]
[Source "ChessBase"]
[SourceQuality "1"]
[TimeControl "180+2"]

1. d4 {[%emt 0:00:01]} Nf6 {[%emt 0:00:01]} 2. c4 {[%emt 0:00:00]} e6 {[%emt 0:
00:01]} 3. Nf3 {[%emt 0:00:01]} d5 {[%emt 0:00:00]} 4. Nc3 {[%emt 0:00:01]} Bb4
{[%emt 0:00:01]} 5. cxd5 {[%emt 0:00:05]} exd5 {[%emt 0:00:01]} 6. Bg5 {
[%emt 0:00:04]} h6 {[%emt 0:00:04]} 7. Bxf6 {[%emt 0:00:03]} Qxf6 {[%emt 0:00:
02]} 8. Qa4+ {[%emt 0:00:01]} Nc6 {[%emt 0:00:04]} 9. e3 {[%emt 0:00:01]} O-O {
[%emt 0:00:21]} 10. Be2 {[%emt 0:00:02]} Be6 {[%emt 0:00:07]} 11. O-O {[%emt 0:
00:05]} a6 {[%emt 0:00:05]} 12. Qb3 {[%emt 0:00:09]} Rfd8 {[%emt 0:00:13]} 13.
a3 {[%emt 0:00:01]} Bxc3 {[%emt 0:00:02]} 14. bxc3 {[%emt 0:00:05]} Na5 {
[%emt 0:00:32]} 15. Qb4 {[%emt 0:00:06]} b6 {[%emt 0:00:03]} 16. Rab1 {[%emt 0:
00:12]} Nc6 {[%emt 0:00:07]} 17. Qb2 {[%emt 0:00:07]} Na5 {[%emt 0:00:07]} 18.
Nd2 {[%emt 0:00:09]} b5 {[%emt 0:00:11]} 19. Nb3 {[%emt 0:00:17]} Nxb3 {
[%emt 0:00:22]} 20. Qxb3 {[%emt 0:00:01]} c6 {[%emt 0:00:04]} 21. a4 {[%emt 0:
00:04]} Rdb8 {[%emt 0:00:06]} 22. a5 {[%emt 0:00:01]} Bf5 {[%emt 0:00:04]} 23.
Rbe1 {[%emt 0:00:07]} Qg6 {[%emt 0:00:02]} 24. Qb4 {[%emt 0:00:29]} Bd3 {
[%emt 0:00:14]} 25. Bxd3 {[%emt 0:00:02]} Qxd3 {[%emt 0:00:01]} 26. Qc5 {
[%emt 0:00:07]} Qc4 {[%emt 0:00:07]} 27. Qb4 {[%emt 0:00:04]} Re8 {[%emt 0:00:
04]} 28. Qb2 {[%emt 0:00:10]} Re6 {[%emt 0:00:02]} 29. Re2 {[%emt 0:00:04]}
Rae8 {[%emt 0:00:03]} 30. Rfe1 {[%emt 0:00:01]} Qd3 {[%emt 0:00:13]} 31. Qd2 {
[%emt 0:00:06]} Qxd2 {[%emt 0:00:14]} 32. Rxd2 {[%emt 0:00:01]} f5 {[%emt 0:00:
04]} 33. Rde2 {[%emt 0:00:03]} Kf7 {[%emt 0:00:03]} 34. f3 {[%emt 0:00:01]} Kf6
{[%emt 0:00:03]} 35. Kf2 {[%emt 0:00:01]} R8e7 {[%emt 0:00:02]} 36. Rg1 {
[%emt 0:00:04]} Re8 {[%emt 0:00:07]} 37. g4 {[%emt 0:00:02]} f4 {[%emt 0:00:03]
} 38. Rge1 {[%emt 0:00:16]} fxe3+ {[%emt 0:00:05]} 39. Rxe3 {[%emt 0:00:47]}
Rxe3 {[%emt 0:00:02]} 40. Rxe3 {[%emt 0:00:00]} Rb8 {[%emt 0:00:04]} 41. h4 {
[%emt 0:00:05]} b4 {[%emt 0:00:02]} 42. cxb4 {[%emt 0:00:01]} Rxb4 {[%emt 0:00:
01]} 43. Rc3 {[%emt 0:00:01]} Rxd4 {[%emt 0:00:06]} 44. Rxc6+ {[%emt 0:00:01]}
Kf7 {[%emt 0:00:01]} 45. Rxa6 {[%emt 0:00:02]} Ra4 {[%emt 0:00:03]} 46. Ke3 {
[%emt 0:00:06]} g5 {[%emt 0:00:04]} 47. h5 {[%emt 0:00:05]} Kg7 {[%emt 0:00:02]
} 48. Ra7+ {[%emt 0:00:01]} Kf6 {[%emt 0:00:02]} 49. a6 {[%emt 0:00:02]} Ra3+ {
[%emt 0:00:02]} 50. Kf2 {[%emt 0:00:03]} Ke5 {[%emt 0:00:02]} 51. Ra8 {[%emt 0:
00:09]} Kd4 {[%emt 0:00:02]} 52. a7 {[%emt 0:00:01]} Kd3 {[%emt 0:00:04]} 53.
Rd8 {[%emt 0:00:02]} Rxa7 {[%emt 0:00:02]} 54. Rxd5+ {[%emt 0:00:01]} Kc4 {
[%emt 0:00:01]} 55. Rd6 {[%emt 0:00:01]} Rh7 {[%emt 0:00:01]} 56. Kg3 {[%emt 0:
00:01]} Kc5 {[%emt 0:00:02]} 57. Ra6 {[%emt 0:00:02]} Kd5 {[%emt 0:00:01]} 58.
f4 {[%emt 0:00:02]} gxf4+ {[%emt 0:00:02]} 59. Kxf4 {[%emt 0:00:02]} Rf7+ {
[%emt 0:00:01]} 60. Ke3 {[%emt 0:00:01]} Rh7 {[%emt 0:00:02]} 61. Rg6 {[%emt 0:
00:03]} Ke5 {[%emt 0:00:01]} 62. Kf3 {[%emt 0:00:01]} Rh8 {[%emt 0:00:02]} 63.
Ra6 {[%emt 0:00:03]} Rh7 {[%emt 0:00:02]} 64. Ra5+ {[%emt 0:00:01]} Kf6 {
[%emt 0:00:02]} 65. Kf4 {[%emt 0:00:01]} Rb7 {[%emt 0:00:02]} 66. Ra6+ {
[%emt 0:00:01]} Kg7 {[%emt 0:00:01]} 67. Rg6+ {[%emt 0:00:03]} Kh7 {[%emt 0:00:
01]} 68. Kf5 {[%emt 0:00:01]} Rb5+ {[%emt 0:00:02]} 69. Kf6 {[%emt 0:00:02]}
Rb6+ {[%emt 0:00:01]} 70. Kf7 {[%emt 0:00:01]} Rb7+ {[%emt 0:00:01]} 71. Ke8 {
[%emt 0:00:03]} Rb8+ {[%emt 0:00:01]} 72. Kd7 {[%emt 0:00:01]} Rb7+ {[%emt 0:
00:02]} 73. Kc6 {[%emt 0:00:01]} Ra7 {[%emt 0:00:02]} 74. Rd6 {[%emt 0:00:02]}
Ra6+ {[%emt 0:00:01]} 75. Kd5 {[%emt 0:00:01]} Ra1 {[%emt 0:00:05]} 76. Rd7+ {
[%emt 0:00:05]} Kg8 {[%emt 0:00:03]} 77. Ke6 {[%emt 0:00:01]} Rf1 {[%emt 0:00:
03]} 78. Ke7 {[%emt 0:00:05]} Rf4 {[%emt 0:00:02]} 79. Rd6 {[%emt 0:00:08]}
Rxg4 {[%emt 0:00:02]} 80. Rxh6 {[%emt 0:00:01]} Kg7 {[%emt 0:00:01]} 81. Ra6 {
[%emt 0:00:02]} Rh4 {[%emt 0:00:02]} 82. h6+ {[%emt 0:00:03]} Rxh6 {[%emt 0:00:
01]} 83. Rxh6 {[%emt 0:00:01]} Kxh6 {[%emt 0:00:04]} 1/2-1/2

[Event "FIDE Women World Blitz 2021"]
[Site "Warsaw"]
[Date "2021.12.29"]
[Round "4.13"]
[White "Malicka, Maria"]
[Black "Brambilla, Renee Blandy T."]
[Result "1-0"]
[ECO "B33"]
[WhiteElo "2307"]
[BlackElo "1651"]
[Annotator "NA"]
[PlyCount "68"]
[EventDate "2021.12.29"]
[EventType "swiss"]
[EventCountry "POL"]
[Tiebreak "Cut1 Buchholz"]
[SourceTitle "playchess.com"]
[Source "ChessBase"]
[SourceQuality "1"]
[TimeControl "180+2"]

1. e4 {[%emt 0:00:01]} c5 {[%emt 0:00:01]} 2. Nf3 {[%emt 0:00:01]} Nc6 {
[%emt 0:00:00]} 3. d4 {[%emt 0:00:01]} cxd4 {[%emt 0:00:02]} 4. Nxd4 Nf6 {
[%emt 0:00:05]} 5. Nc3 {[%emt 0:00:03]} e5 {[%emt 0:00:01]} 6. Ndb5 {[%emt 0:
00:01]} d6 {[%emt 0:00:01]} 7. a4 {[%emt 0:00:02]} Be7 {[%emt 0:00:05]} 8. Bg5
{[%emt 0:00:06]} O-O {[%emt 0:00:02]} 9. Bxf6 {[%emt 0:00:01]} Bxf6 {[%emt 0:
00:01]} 10. Nd5 {[%emt 0:00:01]} a6 {[%emt 0:00:08]} 11. Nbc3 {[%emt 0:00:01]}
Be7 {[%emt 0:00:02]} 12. Bc4 {[%emt 0:00:04]} Kh8 {[%emt 0:00:01]} 13. O-O {
[%emt 0:00:04]} f5 {[%emt 0:00:04]} 14. exf5 {[%emt 0:00:06]} Bxf5 {[%emt 0:00:
02]} 15. Ne3 {[%emt 0:00:01]} Bd7 {[%emt 0:00:11]} 16. Ncd5 {[%emt 0:00:03]}
Bf6 {[%emt 0:00:35]} 17. c3 {[%emt 0:00:02]} Ne7 {[%emt 0:00:02]} 18. Nxe7 {
[%emt 0:00:02]} Qxe7 {[%emt 0:00:03]} 19. Nd5 {[%emt 0:00:03]} Qd8 {[%emt 0:00:
03]} 20. a5 {[%emt 0:00:08]} Rc8 {[%emt 0:00:01]} 21. Nb6 {[%emt 0:00:06]} Rc5
{[%emt 0:00:22]} 22. b4 {[%emt 0:00:21]} Rc6 {[%emt 0:00:06]} 23. Rc1 {[%emt 0:
00:23]} Bf5 {[%emt 0:00:09]} 24. Bd5 {[%emt 0:00:09]} Rc7 {[%emt 0:00:06]} 25.
c4 {[%emt 0:00:10]} Re8 {[%emt 0:00:09]} 26. Qf3 {[%emt 0:00:04]} Be6 {[%emt 0:
00:06]} 27. Bxb7 {[%emt 0:00:05]} Qb8 {[%emt 0:01:13]} 28. Bxa6 {[%emt 0:00:05]
} Rf7 {[%emt 0:00:08]} 29. Qe2 {[%emt 0:00:17]} Bd8 {[%emt 0:00:01]} 30. Bb5 {
[%emt 0:00:03]} Ref8 {[%emt 0:00:06]} 31. Qe3 {[%emt 0:00:08]} Bxb6 {[%emt 0:
00:03]} 32. Qxb6 {[%emt 0:00:06]} Qxb6 {[%emt 0:00:04]} 33. axb6 {[%emt 0:00:
01]} Rc8 {[%emt 0:00:02]} 34. c5 {[%emt 0:00:04]} dxc5 {[%emt 0:00:05]} 1-0

[Event "FIDE Women World Blitz 2021"]
[Site "Warsaw"]
[Date "2021.12.29"]
[Round "4.13"]
[White "Nomin-Erdene, Davaademberel"]
[Black "Bodnaruk, Anastasia"]
[Result "1-0"]
[ECO "B92"]
[WhiteElo "2188"]
[BlackElo "2396"]
[Annotator "NA"]
[PlyCount "145"]
[EventDate "2021.12.29"]
[EventType "swiss"]
[EventCountry "POL"]
[Tiebreak "Cut1 Buchholz"]
[SourceTitle "playchess.com"]
[Source "ChessBase"]
[SourceQuality "1"]
[TimeControl "180+2"]

1. e4 {[%emt 0:00:01]} c5 {[%emt 0:00:00]} 2. Nf3 {[%emt 0:00:01]} d6 {[%emt 0:
00:01]} 3. d4 {[%emt 0:00:01]} cxd4 {[%emt 0:00:01]} 4. Nxd4 {[%emt 0:00:00]}
Nf6 {[%emt 0:00:00]} 5. Nc3 {[%emt 0:00:01]} a6 {[%emt 0:00:01]} 6. Be3 {
[%emt 0:00:02]} e5 {[%emt 0:00:01]} 7. Nf3 {[%emt 0:00:01]} Qc7 {[%emt 0:00:01]
} 8. a4 {[%emt 0:00:02]} Be7 {[%emt 0:00:02]} 9. Be2 {[%emt 0:00:04]} O-O {
[%emt 0:00:05]} 10. O-O {[%emt 0:00:03]} Be6 {[%emt 0:00:03]} 11. a5 {[%emt 0:
00:04]} Nbd7 {[%emt 0:00:06]} 12. Nd5 {[%emt 0:00:17]} Bxd5 {[%emt 0:00:09]}
13. exd5 {[%emt 0:00:02]} b5 {[%emt 0:00:10]} 14. axb6 Nxb6 {[%emt 0:00:01]}
15. Rxa6 {[%emt 0:01:22]} Rxa6 {[%emt 0:00:11]} 16. Bxa6 Nfxd5 {[%emt 0:00:09]}
17. Bc1 {[%emt 0:00:01]} Nb4 {[%emt 0:00:07]} 18. Bd3 {[%emt 0:00:02]} d5 {
[%emt 0:00:16]} 19. Ne1 {[%emt 0:00:07]} e4 {[%emt 0:00:07]} 20. Be2 {[%emt 0:
00:01]} f5 {[%emt 0:00:08]} 21. c3 Nc6 22. Qb3 {[%emt 0:00:03]} Na5 {[%emt 0:
00:08]} 23. Qb5 {[%emt 0:00:03]} Nb7 {[%emt 0:00:30]} 24. Be3 {[%emt 0:00:05]}
Bc5 {[%emt 0:00:00]} 25. Nc2 {[%emt 0:00:06]} f4 {[%emt 0:00:16]} 26. Bxc5 Nxc5
{[%emt 0:00:01]} 27. f3 {[%emt 0:00:12]} Rb8 {[%emt 0:00:18]} 28. Qa5 {[%emt 0:
00:11]} Ra8 {[%emt 0:00:09]} 29. Qb5 {[%emt 0:00:01]} Rb8 {[%emt 0:00:13]} 30.
Qa5 {[%emt 0:00:00]} Ne6 {[%emt 0:00:02]} 31. Nb4 {[%emt 0:00:06]} Rd8 {
[%emt 0:00:20]} 32. Rd1 {[%emt 0:00:08]} e3 {[%emt 0:00:08]} 33. h3 {[%emt 0:
00:13]} d4 {[%emt 0:00:10]} 34. Qf5 {[%emt 0:00:19]} Qf7 {[%emt 0:00:05]} 35.
Qxf7+ {[%emt 0:00:06]} Kxf7 {[%emt 0:00:00]} 36. Nc6 {[%emt 0:00:01]} Rd6 {
[%emt 0:00:08]} 37. Nxd4 {[%emt 0:00:03]} Nxd4 {[%emt 0:00:03]} 38. cxd4 {
[%emt 0:00:01]} Na4 {[%emt 0:00:01]} 39. b3 {[%emt 0:00:06]} Nc3 {[%emt 0:00:
01]} 40. Bc4+ {[%emt 0:00:00]} Kf6 {[%emt 0:00:03]} 41. Rc1 {[%emt 0:00:01]}
Na2 {[%emt 0:00:00]} 42. Ra1 {[%emt 0:00:07]} Nb4 {[%emt 0:00:01]} 43. Rd1 {
[%emt 0:00:06]} Nc2 {[%emt 0:00:01]} 44. d5 {[%emt 0:00:03]} Ke5 {[%emt 0:00:
00]} 45. Kf1 {[%emt 0:00:02]} Nb4 {[%emt 0:00:02]} 46. h4 {[%emt 0:00:13]} Rh6
{[%emt 0:00:04]} 47. Ke2 {[%emt 0:00:02]} Kd6 {[%emt 0:00:08]} 48. Ra1 {
[%emt 0:00:03]} Rxh4 {[%emt 0:00:03]} 49. Ra4 {[%emt 0:00:00]} Nxd5 {[%emt 0:
00:02]} 50. Ra6+ {[%emt 0:00:02]} Kc5 {[%emt 0:00:02]} 51. Ra5+ {[%emt 0:00:01]
} Kb4 {[%emt 0:00:00]} 52. Rxd5 {[%emt 0:00:02]} Rh2 {[%emt 0:00:01]} 53. Rg5 {
[%emt 0:00:01]} g6 {[%emt 0:00:02]} 54. Rg4 {[%emt 0:00:03]} Kc3 {[%emt 0:00:
01]} 55. Rxf4 {[%emt 0:00:01]} Rxg2+ {[%emt 0:00:00]} 56. Kxe3 {[%emt 0:00:01]}
h5 {[%emt 0:00:02]} 57. Rf7 {[%emt 0:00:02]} h4 {[%emt 0:00:02]} 58. Rh7 {
[%emt 0:00:01]} g5 {[%emt 0:00:01]} 59. Bd5 {[%emt 0:00:04]} Rg1 {[%emt 0:00:
04]} 60. Kf2 {[%emt 0:00:04]} Rd1 {[%emt 0:00:02]} 61. Be6 {[%emt 0:00:03]}
Rd2+ {[%emt 0:00:01]} 62. Kg1 {[%emt 0:00:02]} Rd3 {[%emt 0:00:04]} 63. Kg2 {
[%emt 0:00:01]} Rd2+ {[%emt 0:00:04]} 64. Kh3 {[%emt 0:00:01]} Rf2 {[%emt 0:00:
01]} 65. Bd5 {[%emt 0:00:02]} Kd4 {[%emt 0:00:01]} 66. Be4 {[%emt 0:00:01]} Ke3
{[%emt 0:00:04]} 67. Kg4 {[%emt 0:00:01]} Rg2+ {[%emt 0:00:01]} 68. Kf5 {
[%emt 0:00:03]} Rg3 {[%emt 0:00:03]} 69. b4 {[%emt 0:00:01]} h3 {[%emt 0:00:01]
} 70. b5 {[%emt 0:00:02]} Kf2 {[%emt 0:00:05]} 71. b6 {[%emt 0:00:01]} Rg1 {
[%emt 0:00:02]} 72. Rxh3 {[%emt 0:00:03]} Rc1 {[%emt 0:00:02]} 73. b7 {[%emt 0:
00:01]} 1-0

[Event "FIDE Women World Blitz 2021"]
[Site "Warsaw"]
[Date "2021.12.29"]
[Round "4.14"]
[White "Dzagnidze, Nana"]
[Black "Babiy, Olga"]
[Result "1/2-1/2"]
[ECO "D27"]
[WhiteElo "2524"]
[BlackElo "2179"]
[Annotator "ChessBase"]
[PlyCount "215"]
[EventDate "2021.12.29"]
[EventType "swiss"]
[EventCountry "POL"]
[Tiebreak "Cut1 Buchholz"]
[SourceTitle "playchess.com"]
[Source "ChessBase"]
[SourceQuality "1"]
[TimeControl "180+2"]

1. d4 {[%emt 0:00:02]} d5 {[%emt 0:00:00]} 2. c4 {[%emt 0:00:03]} dxc4 {
[%emt 0:00:01]} 3. Nf3 {[%emt 0:00:02]} Nf6 4. e3 {[%emt 0:00:02]} e6 {[%emt 0:
00:02]} 5. Bxc4 {[%emt 0:00:02]} a6 {[%emt 0:00:00]} 6. O-O {[%emt 0:00:05]} c5
{[%emt 0:00:01]} 7. b3 {[%emt 0:00:09]} b6 {[%emt 0:00:08]} 8. Bb2 {[%emt 0:00:
02]} Bb7 {[%emt 0:00:05]} 9. Qe2 {[%emt 0:00:10]} Nbd7 {[%emt 0:00:04]} 10. Rd1
{[%emt 0:00:05]} Qc7 {[%emt 0:00:18]} 11. Nbd2 {[%emt 0:00:08]} Be7 {[%emt 0:
00:04]} 12. Rac1 {[%emt 0:00:02]} b5 {[%emt 0:00:09]} 13. Bd3 {[%emt 0:00:02]}
Qb6 {[%emt 0:00:01]} 14. Nf1 {[%emt 0:00:23]} O-O {[%emt 0:00:03]} 15. Ng3 {
[%emt 0:00:01]} Rac8 {[%emt 0:00:13]} 16. h3 {[%emt 0:00:15]} cxd4 {[%emt 0:00:
06]} 17. Bxd4 {[%emt 0:00:04]} Bc5 {[%emt 0:00:02]} 18. Bb2 {[%emt 0:00:02]}
Rfd8 {[%emt 0:00:06]} 19. Bb1 {[%emt 0:00:05]} Nd5 {[%emt 0:00:36]} 20. Ng5 {
[%emt 0:00:52]} N7f6 {[%emt 0:00:01]} 21. N3e4 {[%emt 0:00:03]} Nxe4 {[%emt 0:
00:23]} 22. Nxe4 {[%emt 0:00:19]} Be7 {[%emt 0:00:12]} 23. Rxc8 {[%emt 0:00:05]
} Rxc8 {[%emt 0:00:04]} 24. Qg4 {[%emt 0:00:11]} g6 {[%emt 0:00:12]} 25. Qg3 {
[%emt 0:00:16]} Qc7 {[%emt 0:00:03]} 26. Be5 {[%emt 0:00:05]} Qd8 {[%emt 0:00:
03]} 27. Qf3 {[%emt 0:00:06]} f5 {[%emt 0:00:06]} 28. Ng3 {[%emt 0:00:06]} Qb6
{[%emt 0:00:09]} 29. Bd4 {[%emt 0:00:04]} Qc7 {[%emt 0:00:01]} 30. Qe2 {
[%emt 0:00:04]} Nc3 {[%emt 0:00:17]} 31. Bxc3 Qxc3 {[%emt 0:00:02]} 32. e4 {
[%emt 0:00:03]} f4 {[%emt 0:00:11]} 33. Nf1 {[%emt 0:00:02]} Qc6 {[%emt 0:00:
04]} 34. Nh2 {[%emt 0:00:03]} Rd8 {[%emt 0:00:04]} 35. Nf3 {[%emt 0:00:02]}
Rxd1+ {[%emt 0:00:06]} 36. Qxd1 Qd6 37. Qc1 {[%emt 0:00:06]} g5 {[%emt 0:00:06]
} 38. e5 {[%emt 0:00:03]} Qc6 {[%emt 0:00:01]} 39. Qd2 {[%emt 0:00:02]} Kf7 {
[%emt 0:00:01]} 40. Kh2 {[%emt 0:00:01]} h6 {[%emt 0:00:01]} 41. Qd3 {[%emt 0:
00:01]} Ke8 {[%emt 0:00:09]} 42. Qg6+ {[%emt 0:00:01]} Kd7 {[%emt 0:00:01]} 43.
Qxh6 {[%emt 0:00:01]} Qc1 {[%emt 0:00:02]} 44. Nd4 {[%emt 0:00:03]} Bd5 {
[%emt 0:00:03]} 45. Be4 {[%emt 0:00:04]} Bxe4 {[%emt 0:00:06]} 46. Qxe6+ {
[%emt 0:00:01]} Kd8 {[%emt 0:00:00]} 47. Qg8+ {[%emt 0:00:02]} Kd7 {[%emt 0:00:
01]} 48. e6+ {[%emt 0:00:04]} Kc7 {[%emt 0:00:05]} 49. Qe8 {[%emt 0:00:01]} Qc5
{[%emt 0:00:01]} 50. Qd7+ {[%emt 0:00:02]} Kb6 {[%emt 0:00:01]} 51. a3 {
[%emt 0:00:03]} a5 {[%emt 0:00:01]} 52. b4 {[%emt 0:00:02]} axb4 {[%emt 0:00:
01]} 53. axb4 {[%emt 0:00:01]} Qxb4 {[%emt 0:00:01]} 54. Nxb5 {[%emt 0:00:01]}
Qxb5 {[%emt 0:00:05]} 55. Qxe7 {[%emt 0:00:01]} Bc6 {[%emt 0:00:03]} 56. Qd8+ {
[%emt 0:00:02]} Kb7 {[%emt 0:00:01]} 57. e7 {[%emt 0:00:03]} Be8 {[%emt 0:00:
01]} 58. Qd6 {[%emt 0:00:03]} Qc6 {[%emt 0:00:01]} 59. Qb4+ {[%emt 0:00:02]}
Qb5 {[%emt 0:00:01]} 60. Qe4+ {[%emt 0:00:01]} Kc7 {[%emt 0:00:01]} 61. f3 {
[%emt 0:00:02]} Kd7 {[%emt 0:00:02]} 62. Qe1 {[%emt 0:00:03]} Qc5 {[%emt 0:00:
01]} 63. h4 {[%emt 0:00:03]} Qxe7 {[%emt 0:00:05]} 64. Qd2+ {[%emt 0:00:01]}
Ke6 {[%emt 0:00:06]} 65. Qa2+ {[%emt 0:00:03]} Kf5 {[%emt 0:00:01]} 66. Qc2+ {
[%emt 0:00:02]} Kf6 {[%emt 0:00:01]} 67. Qc3+ {[%emt 0:00:01]} Kg6 {[%emt 0:00:
02]} 68. Qd3+ {[%emt 0:00:01]} Kh6 {[%emt 0:00:01]} 69. hxg5+ {[%emt 0:00:02]}
Qxg5 {[%emt 0:00:01]} 70. Qd6+ {[%emt 0:00:01]} Bg6 {[%emt 0:00:01]} 71. Qb8 {
[%emt 0:00:03]} Qg3+ {[%emt 0:00:01]} 72. Kh1 {[%emt 0:00:01]} Qe1+ 73. Kh2
Qh4+ {[%emt 0:00:02]} 74. Kg1 {[%emt 0:00:01]} Qe1+ {[%emt 0:00:07]} 75. Kh2 {
[%emt 0:00:01]} Qg3+ {[%emt 0:00:01]} 76. Kh1 {[%emt 0:00:02]} Kh7 {[%emt 0:00:
05]} 77. Qc7+ {[%emt 0:00:02]} Kg8 {[%emt 0:00:01]} 78. Qd8+ {[%emt 0:00:02]}
Kg7 {[%emt 0:00:01]} 79. Qe7+ {[%emt 0:00:01]} Bf7 {[%emt 0:00:01]} 80. Qe5+ {
[%emt 0:00:02]} Kg6 {[%emt 0:00:00]} 81. Qd6+ {[%emt 0:00:01]} Kh7 {[%emt 0:00:
02]} 82. Qe7 {[%emt 0:00:02]} Qg6 {[%emt 0:00:06]} 83. Kg1 {[%emt 0:00:03]} Kg7
{[%emt 0:00:06]} 84. Qe5+ {[%emt 0:00:03]} Qf6 {[%emt 0:00:00]} 85. Qc7 {
[%emt 0:00:01]} Kg6 {[%emt 0:00:01]} 86. Qc2+ {[%emt 0:00:05]} Kg7 {[%emt 0:00:
01]} 87. Qc7 {[%emt 0:00:02]} Qd4+ {[%emt 0:00:01]} 88. Kh2 {[%emt 0:00:02]}
Kg6 {[%emt 0:00:01]} 89. Qc6+ {[%emt 0:00:04]} Kf5 {[%emt 0:00:01]} 90. Qc8+ {
[%emt 0:00:01]} Be6 {[%emt 0:00:02]} 91. Qf8+ {[%emt 0:00:02]} Ke5 {[%emt 0:00:
01]} 92. Qh8+ {[%emt 0:00:02]} Kd5 {[%emt 0:00:01]} 93. Qd8+ {[%emt 0:00:01]}
Kc4 {[%emt 0:00:01]} 94. Qc7+ {[%emt 0:00:02]} Kd3 {[%emt 0:00:03]} 95. Qc6 {
[%emt 0:00:05]} Bd5 {[%emt 0:00:04]} 96. Qe8 {[%emt 0:00:04]} Qe3 {[%emt 0:00:
05]} 97. Qd8 {[%emt 0:00:01]} Qd4 {[%emt 0:00:01]} 98. Qe7 {[%emt 0:00:02]} Kd2
{[%emt 0:00:02]} 99. Kh3 {[%emt 0:00:02]} Qe3 {[%emt 0:00:02]} 100. Qd6 {
[%emt 0:00:02]} Qd4 {[%emt 0:00:04]} 101. Kh4 {[%emt 0:00:01]} Ke2 {[%emt 0:00:
03]} 102. Kg5 {[%emt 0:00:02]} Kf2 {[%emt 0:00:03]} 103. Qxf4 {[%emt 0:00:01]}
Qg7+ {[%emt 0:00:02]} 104. Kf5 {[%emt 0:00:04]} Qxg2 {[%emt 0:00:05]} 105. Qd2+
{[%emt 0:00:04]} Kxf3 {[%emt 0:00:00]} 106. Qxd5+ {[%emt 0:00:01]} Kf2 {
[%emt 0:00:00]} 107. Qxg2+ {[%emt 0:00:02]} Kxg2 108. Ke4 {[%emt 0:00:04]}
1/2-1/2

[Event "FIDE Women World Blitz 2021"]
[Site "Warsaw"]
[Date "2021.12.29"]
[Round "4.15"]
[White "Fernandez, Maria Florencia"]
[Black "Abdumalik, Zhansaya"]
[Result "0-1"]
[ECO "A53"]
[WhiteElo "2184"]
[BlackElo "2507"]
[Annotator "ChessBase"]
[PlyCount "24"]
[EventDate "2021.12.29"]
[EventType "swiss"]
[EventCountry "POL"]
[Tiebreak "Cut1 Buchholz"]
[SourceTitle "playchess.com"]
[Source "ChessBase"]
[SourceQuality "1"]
[TimeControl "180+2"]

1. d4 {[%emt 0:00:02]} Nf6 {[%emt 0:00:01]} 2. c4 {[%emt 0:00:01]} d6 {[%emt 0:
00:01]} 3. Nc3 {[%emt 0:00:02]} Bf5 {[%emt 0:00:01]} 4. f3 {[%emt 0:00:02]} e5
{[%emt 0:00:03]} 5. d5 {[%emt 0:00:05]} h5 {[%emt 0:00:13]} 6. e4 {[%emt 0:00:
02]} Bc8 {[%emt 0:00:01]} 7. Be3 {[%emt 0:00:07]} g6 {[%emt 0:00:02]} 8. Qd2 {
[%emt 0:00:02]} Bg7 {[%emt 0:00:01]} 9. Bd3 {[%emt 0:00:13]} a5 {[%emt 0:00:04]
} 10. Nge2 {[%emt 0:00:06]} Na6 {[%emt 0:00:02]} 11. O-O {[%emt 0:00:13]} O-O {
[%emt 0:00:04]} 12. Bg5 {[%emt 0:00:11]} c6 {[%emt 0:00:07]} 0-1

[Event "FIDE Women World Blitz 2021"]
[Site "Warsaw"]
[Date "2021.12.29"]
[Round "4.16"]
[White "Goraj, Barbara"]
[Black "Zatonskih, Anna"]
[Result "0-1"]
[ECO "C09"]
[WhiteElo "1902"]
[BlackElo "2394"]
[Annotator "NA"]
[PlyCount "60"]
[EventDate "2021.12.29"]
[EventType "swiss"]
[EventCountry "POL"]
[Tiebreak "Cut1 Buchholz"]
[SourceTitle "playchess.com"]
[Source "ChessBase"]
[SourceQuality "1"]
[TimeControl "180+2"]

1. e4 {[%emt 0:00:01]} e6 {[%emt 0:00:00]} 2. d4 {[%emt 0:00:01]} d5 {[%emt 0:
00:01]} 3. Nd2 {[%emt 0:00:02]} c5 {[%emt 0:00:01]} 4. exd5 {[%emt 0:00:02]}
exd5 {[%emt 0:00:01]} 5. Ngf3 {[%emt 0:00:04]} Nc6 {[%emt 0:00:01]} 6. Bb5 {
[%emt 0:00:03]} Qe7+ {[%emt 0:00:01]} 7. Qe2 {[%emt 0:00:25]} Qxe2+ {[%emt 0:
00:02]} 8. Kxe2 {[%emt 0:00:02]} a6 {[%emt 0:00:00]} 9. Bxc6+ {[%emt 0:00:06]}
bxc6 {[%emt 0:00:01]} 10. dxc5 {[%emt 0:00:03]} Bxc5 {[%emt 0:00:01]} 11. Re1 {
[%emt 0:00:03]} f6 {[%emt 0:00:02]} 12. Nb3 {[%emt 0:00:02]} Bd6 {[%emt 0:00:
03]} 13. Be3 {[%emt 0:00:09]} a5 {[%emt 0:00:28]} 14. Nc5 {[%emt 0:00:19]} Ne7
{[%emt 0:00:17]} 15. Kf1 {[%emt 0:00:44]} Kf7 {[%emt 0:00:05]} 16. Nb3 {
[%emt 0:00:21]} a4 {[%emt 0:00:23]} 17. Bc5 {[%emt 0:00:21]} axb3 {[%emt 0:00:
52]} 18. Bxd6 {[%emt 0:00:01]} Nf5 {[%emt 0:00:00]} 19. Ba3 {[%emt 0:00:01]}
bxc2 {[%emt 0:00:09]} 20. Rac1 {[%emt 0:00:21]} Ba6+ {[%emt 0:00:19]} 21. Kg1 {
[%emt 0:00:02]} Rhe8 {[%emt 0:00:20]} 22. Rxc2 {[%emt 0:00:13]} Nd4 {[%emt 0:
00:15]} 23. Rxe8 {[%emt 0:00:10]} Rxe8 {[%emt 0:00:01]} 24. Rd2 {[%emt 0:00:06]
} Nxf3+ {[%emt 0:00:06]} 25. gxf3 {[%emt 0:00:01]} Re1+ {[%emt 0:00:06]} 26.
Kg2 {[%emt 0:00:00]} Bf1+ {[%emt 0:00:02]} 27. Kg3 {[%emt 0:00:02]} g5 {
[%emt 0:00:03]} 28. Rc2 {[%emt 0:00:06]} Bd3 {[%emt 0:00:05]} 29. Rxc6 {
[%emt 0:00:06]} Rg1+ {[%emt 0:00:02]} 30. Kh3 {[%emt 0:00:01]} Bf5# {[%emt 0:
00:00]} 0-1